[Event "GER-ch Youth-U10 2022"]
[Site "Willingen"]
[Date "2022.06.08"]
[Round "6.7"]
[White "Fischermann, Simon"]
[Black "Peglau, Paul David"]
[Result "1/2-1/2"]
[ECO "C01"]
[WhiteElo "1344"]
[BlackElo "1623"]
[Annotator "NA RC COMBH"]
[PlyCount "87"]
[EventDate "2022.06.05"]
[EventType "swiss"]
[EventRounds "11"]
[EventCountry "GER"]
[SourceTitle "playchess.com"]
[Source "ChessBase"]
[SourceQuality "1"]
[TimeControl "40/4500+30:900+30"]

1. e4 {[%emt 0:00:04]} e6 {[%emt 0:00:27]} 2. d4 {[%emt 0:00:08]} d5 {[%emt 0:00:04]} 3. exd5 {[%emt 0:00:21]} exd5 {[%emt 0:00:02]} 4. Bf4 {[%emt 0:00:26]} Nf6 {[%emt 0:00:14]} 5. Bd3 {[%emt 0:00:08]} Bd6 {[%emt 0:00:30]} 6. Bxd6 {[%emt 0:00:25]} Qxd6 {[%emt 0:00:03]} 7. Nc3 {[%emt 0:00:37]} c6 {[%emt 0:07:30]} 8. Qd2 {[%emt 0:00:31]} O-O {[%emt 0:00:43]} 9. O-O-O {[%emt 0:00:06]} b5 {[%emt 0:03:43]} 10. f3 {[%emt 0:01:37]} a5 {[%emt 0:02:57]} 11. g4 {[%emt 0:00:19]} Be6 {[%emt 0:02:49]} 12. h4 {[%emt 0:00:10]} a4 {[%emt 0:02:56]} 13. h5 {[%emt 0:00:40]} b4 {[%emt 0:01:34]} 14. Nb1 {[%emt 0:00:06]} Na6 {[%emt 0:02:49]} 15. g5 {[%emt 0:00:17]} Nd7 {[%emt 0:00:57]} 16. f4 {[%emt 0:01:54]} f5 {[%emt 0:07:46]} 17. g6 {[%emt 0:00:28]} h6 {[%emt 0:00:30]} 18. Nf3 {[%emt 0:01:06]} b3 {[%emt 0:02:30]} 19. cxb3 {[%emt 0:01:15]} axb3 {[%emt 0:00:32]} 20. a3 {[%emt 0:00:39]} c5 {[%emt 0:01:22]} 21. Bxa6 {[%emt 0:00:58]} Rxa6 {[%emt 0:00:56]} 22. Nc3 {[%emt 0:01:21]} Rc8 {[%emt 0:02:52]} 23. Kb1 {[%emt 0:05:07]} Nf6 {[%emt 0:07:29]} 24. Ne5 {[%emt 0:03:16]} Ne4 {[%emt 0:05:58]} 25. Nxe4 {[%emt 0:00:25]} dxe4 {[%emt 0:00:55]} 26. dxc5 {[%emt 0:01:11]} Qxc5 {[%emt 0:02:37]} 27. Rc1 {[%emt 0:02:36]} Rd6 {[%emt 0:03:56]} 28. Qe2 {[%emt 0:06:45]} Qd4 {[%emt 0:06:17]} 29. Qb5 {[%emt 0:03:59]} Rdd8 {[%emt 0:08:44]} 30. Nc6 {[%emt 0:02:21]} Qd7 {[%emt 0:01:15]} 31. Qa5 {[%emt 0:08:10]} Qd3+ {[%emt 0:03:05]} 32. Ka1 {[%emt 0:00:14]} Re8 {[%emt 0:01:59]} 33. Rhd1 {[%emt 0:01:17]} Rxc6 {[%emt 0:01:43]} 34. Rb1 {[%emt 0:00:43]} Ra6 {[%emt 0:02:45]} 35. Qc7 {[%emt 0:00:32]} Qc4 {[%emt 0:01:19]} 36. Qe5 {[%emt 0:00:57]} Raa8 {[%emt 0:00:48]} 37. Rbc1 {[%emt 0:00:59]} Qa4 {[%emt 0:00:36]} 38. Rc7 {[%emt 0:01:23]} Bd7 {[%emt 0:00:45]} 39. Qd5+ {[%emt 0:01:10]} Be6 {[%emt 0:00:23]} 40. Qe5 {[%emt 0:00:14]} Bd7 {[%emt 0:00:35]} 41. Qd5+ {[%emt 0:15:07]} Be6 {[%emt 0:10:39]} 42. Qb7 {[%emt 0:00:03]} Bd7 {[%emt 0:00:06]} 43. Qd5+ Kh8 44. Rxd7 {[%emt 0:00:04]} 1/2-1/2

[Event "GER-ch Youth-U10 2022"]
[Site "Willingen"]
[Date "2022.06.08"]
[Round "6.8"]
[White "Tak, Rannveer"]
[Black "Shen, Tingrui"]
[Result "0-1"]
[ECO "B26"]
[WhiteElo "1746"]
[BlackElo "1621"]
[Annotator "NA RC COMBH"]
[PlyCount "62"]
[EventDate "2022.06.05"]
[EventType "swiss"]
[EventRounds "11"]
[EventCountry "GER"]
[SourceTitle "playchess.com"]
[Source "ChessBase"]
[SourceQuality "1"]
[TimeControl "40/4500+30:900+30"]

1. e4 {[%emt 0:00:06]} c5 {[%emt 0:00:11]} 2. Nc3 {[%emt 0:00:09]} Nc6 {[%emt 0:00:40]} 3. g3 {[%emt 0:00:17]} g6 {[%emt 0:00:52]} 4. Bg2 {[%emt 0:00:33]} Bg7 {[%emt 0:01:51]} 5. d3 {[%emt 0:00:42]} Rb8 {[%emt 0:01:24]} 6. Be3 {[%emt 0:10:20]} d6 {[%emt 0:02:08]} 7. Qd2 {[%emt 0:01:21]} b5 {[%emt 0:05:31]} 8. Nge2 {[%emt 0:00:26]} b4 {[%emt 0:06:09]} 9. Nd1 {[%emt 0:00:26]} a5 {[%emt 0:04:09]} 10. f4 {[%emt 0:07:52]} Ba6 {[%emt 0:08:26]} 11. O-O {[%emt 0:02:31]} a4 {[%emt 0:07:59]} 12. e5 {[%emt 0:00:53]} Na5 {[%emt 0:03:50]} 13. a3 {[%emt 0:04:30]} b3 {[%emt 0:13:07]} 14. c3 {[%emt 0:00:49]} dxe5 {[%emt 0:06:28]} 15. Bxc5 {[%emt 0:01:23]} Qxd3 {[%emt 0:04:02]} 16. Qxd3 {[%emt 0:00:57]} Bxd3 {[%emt 0:00:27]} 17. Re1 {[%emt 0:00:36]} Rc8 {[%emt 0:05:01]} 18. Bb4 {[%emt 0:01:03]} Nc4 {[%emt 0:02:34]} 19. fxe5 {[%emt 0:01:45]} Nxe5 {[%emt 0:04:04]} 20. Nd4 {[%emt 0:02:06]} Nh6 {[%emt 0:02:26]} 21. Nf2 {[%emt 0:02:54]} Ba6 {[%emt 0:01:19]} 22. Re3 {[%emt 0:01:41]} O-O {[%emt 0:01:25]} 23. Bxe7 {[%emt 0:02:42]} Rfe8 {[%emt 0:01:00]} 24. Bg5 {[%emt 0:02:09]} Nc4 {[%emt 0:01:03]} 25. Rxe8+ {[%emt 0:00:43]} Rxe8 {[%emt 0:00:11]} 26. Bc6 {[%emt 0:00:38]} Rc8 {[%emt 0:00:24]} 27. Bxa4 {[%emt 0:00:58]} Nxb2 {[%emt 0:00:10]} 28. Bxb3 {[%emt 0:00:14]} Rxc3 {[%emt 0:01:10]} 29. Re1 {[%emt 0:01:01]} Bxd4 {[%emt 0:00:12]} 30. Bxh6 {[%emt 0:00:53]} Bxf2+ {[%emt 0:00:06]} 31. Kxf2 {[%emt 0:00:54]} Nd3+ {[%emt 0:00:05]} 0-1

[Event "GER-ch Youth-U10 2022"]
[Site "Willingen"]
[Date "2022.06.08"]
[Round "6.9"]
[White "Lee, Ho In"]
[Black "Li, Yunqi"]
[Result "0-1"]
[ECO "B41"]
[WhiteElo "1396"]
[BlackElo "1312"]
[Annotator "NA RC COMBH"]
[PlyCount "118"]
[EventDate "2022.06.05"]
[EventType "swiss"]
[EventRounds "11"]
[EventCountry "GER"]
[SourceTitle "playchess.com"]
[Source "ChessBase"]
[SourceQuality "1"]
[TimeControl "40/4500+30:900+30"]

1. e4 {[%emt 0:00:03]} c5 {[%emt 0:00:09]} 2. Nf3 {[%emt 0:00:24]} d6 {[%emt 0:00:06]} 3. d4 {[%emt 0:00:20]} cxd4 {[%emt 0:00:07]} 4. Nxd4 {[%emt 0:00:18]} Nf6 {[%emt 0:00:18]} 5. f3 {[%emt 0:00:50]} a6 {[%emt 0:01:51]} 6. c4 {[%emt 0:00:38]} e6 {[%emt 0:00:36]} 7. Nc3 {[%emt 0:01:08]} Be7 {[%emt 0:00:19]} 8. Be3 {[%emt 0:01:58]} Nbd7 {[%emt 0:00:42]} 9. Be2 {[%emt 0:00:58]} O-O {[%emt 0:01:40]} 10. O-O {[%emt 0:00:53]} Ne5 {[%emt 0:03:40]} 11. Qd2 {[%emt 0:03:48]} Bd7 {[%emt 0:02:26]} 12. Rac1 {[%emt 0:01:33]} Rc8 {[%emt 0:00:47]} 13. b3 {[%emt 0:00:12]} Qc7 {[%emt 0:00:35]} 14. Rfd1 {[%emt 0:00:30]} Rfd8 {[%emt 0:00:56]} 15. Nb1 {[%emt 0:04:29]} Qb8 {[%emt 0:04:05]} 16. Nc3 {[%emt 0:01:29]} h6 {[%emt 0:03:07]} 17. a4 {[%emt 0:03:04]} Be8 {[%emt 0:16:28]} 18. Rc2 {[%emt 0:01:52]} Rd7 {[%emt 0:04:15]} 19. Rdc1 {[%emt 0:00:31]} Bd8 {[%emt 0:02:18]} 20. Nd1 {[%emt 0:01:02]} Bc7 {[%emt 0:00:41]} 21. Nf2 {[%emt 0:01:01]} Rcd8 {[%emt 0:06:07]} 22. f4 {[%emt 0:09:29]} Ng6 {[%emt 0:00:49]} 23. f5 {[%emt 0:00:39]} Nf8 {[%emt 0:04:25]} 24. h3 {[%emt 0:02:51]} e5 {[%emt 0:01:14]} 25. Nf3 {[%emt 0:02:14]} Re7 {[%emt 0:01:15]} 26. Qb4 {[%emt 0:03:32]} Bc6 {[%emt 0:02:12]} 27. Nd2 {[%emt 0:02:33]} Red7 {[%emt 0:02:57]} 28. Bf3 {[%emt 0:02:22]} Re8 {[%emt 0:04:24]} 29. Nf1 {[%emt 0:01:40]} N8h7 {[%emt 0:00:22]} 30. h4 {[%emt 0:05:10]} Qa8 {[%emt 0:01:35]} 31. Ng3 {[%emt 0:01:07]} a5 {[%emt 0:00:21]} 32. Qe1 {[%emt 0:01:15]} b6 {[%emt 0:00:21]} 33. Rd1 {[%emt 0:00:47]} Qb7 {[%emt 0:00:31]} 34. Bc1 {[%emt 0:01:05]} Bb8 {[%emt 0:01:12]} 35. Rc3 {[%emt 0:01:12]} Kf8 {[%emt 0:00:58]} 36. Rcd3 {[%emt 0:00:22]} Kg8 {[%emt 0:00:17]} 37. Ba3 {[%emt 0:02:13]} Red8 {[%emt 0:00:11]} 38. R1d2 {[%emt 0:00:48]} Bc7 {[%emt 0:00:45]} 39. Qd1 {[%emt 0:00:55]} Qb8 {[%emt 0:00:09]} 40. Ne2 {[%emt 0:02:24]} Ba8 {[%emt 0:00:16]} 41. Nc3 {[%emt 0:15:07]} Bc6 {[%emt 0:15:31]} 42. Nb5 {[%emt 0:02:34]} Bxb5 {[%emt 0:00:22]} 43. axb5 {[%emt 0:00:09]} Ne8 {[%emt 0:02:16]} 44. Ng4 {[%emt 0:00:55]} f6 {[%emt 0:02:22]} 45. Ne3 {[%emt 0:00:38]} Qb7 {[%emt 0:02:35]} 46. Nd5 {[%emt 0:00:55]} Bb8 {[%emt 0:01:09]} 47. Bh5 {[%emt 0:00:17]} Nc7 {[%emt 0:02:20]} 48. Nxc7 {[%emt 0:00:22]} Bxc7 {[%emt 0:00:26]} 49. Bxd6 {[%emt 0:01:32]} Qxe4 {[%emt 0:02:32]} 50. Bf3 {[%emt 0:01:07]} Qxd3 {[%emt 0:00:08]} 51. Rxd3 {[%emt 0:00:14]} Bxd6 {[%emt 0:00:07]} 52. Bc6 {[%emt 0:00:11]} Bc5+ {[%emt 0:00:08]} 53. Kh2 {[%emt 0:00:20]} Rxd3 {[%emt 0:00:13]} 54. Bd5+ {[%emt 0:00:12]} R8xd5 {[%emt 0:00:10]} 55. Qg4 {[%emt 0:00:37]} Rd8 {[%emt 0:00:47]} 56. Qe4 {[%emt 0:00:19]} Rxb3 {[%emt 0:00:45]} 57. Qb7 {[%emt 0:00:08]} Nf8 {[%emt 0:01:12]} 58. Qc7 {[%emt 0:00:14]} Rd1 {[%emt 0:00:33]} 59. Qc6 {[%emt 0:00:19]} Bg1+ {[%emt 0:00:16]} 0-1

[Event "GER-ch Youth-U10 2022"]
[Site "Willingen"]
[Date "2022.06.08"]
[Round "6.10"]
[White "Gersemann, Karl"]
[Black "Dotschuweit, Erik"]
[Result "0-1"]
[ECO "C71"]
[WhiteElo "1620"]
[BlackElo "1323"]
[Annotator "NA RC COMBH"]
[PlyCount "74"]
[EventDate "2022.06.05"]
[EventType "swiss"]
[EventRounds "11"]
[EventCountry "GER"]
[SourceTitle "playchess.com"]
[Source "ChessBase"]
[SourceQuality "1"]
[TimeControl "40/4500+30:900+30"]

1. e4 {[%emt 0:00:03]} e5 {[%emt 0:00:11]} 2. Nf3 {[%emt 0:00:07]} Nc6 {[%emt 0:00:08]} 3. Bb5 {[%emt 0:00:09]} a6 {[%emt 0:00:20]} 4. Ba4 {[%emt 0:00:07]} d6 {[%emt 0:00:11]} 5. d4 {[%emt 0:00:17]} b5 {[%emt 0:00:33]} 6. Bb3 {[%emt 0:00:12]} Nxd4 {[%emt 0:00:16]} 7. Nxd4 {[%emt 0:00:43]} exd4 {[%emt 0:00:10]} 8. Bd5 {[%emt 0:00:20]} Rb8 {[%emt 0:01:26]} 9. Qxd4 {[%emt 0:00:25]} c5 {[%emt 0:01:12]} 10. Qd1 {[%emt 0:00:21]} Nf6 {[%emt 0:00:27]} 11. Bg5 {[%emt 0:00:46]} Be7 {[%emt 0:04:50]} 12. Bxf6 {[%emt 0:01:51]} Bxf6 {[%emt 0:00:14]} 13. c3 {[%emt 0:00:22]} O-O {[%emt 0:00:19]} 14. O-O {[%emt 0:00:12]} Be5 {[%emt 0:00:20]} 15. f4 {[%emt 0:00:11]} Bf6 {[%emt 0:00:50]} 16. Nd2 {[%emt 0:00:55]} c4 {[%emt 0:01:10]} 17. Nf3 {[%emt 0:00:28]} Bg4 {[%emt 0:00:24]} 18. h3 {[%emt 0:00:18]} Bxf3 {[%emt 0:00:34]} 19. Qxf3 {[%emt 0:00:15]} Qc7 {[%emt 0:01:46]} 20. a3 {[%emt 0:01:26]} a5 {[%emt 0:02:44]} 21. Qe3 {[%emt 0:02:38]} b4 {[%emt 0:03:47]} 22. axb4 {[%emt 0:00:57]} axb4 {[%emt 0:01:04]} 23. Ra7 {[%emt 0:00:11]} Qc8 {[%emt 0:01:12]} 24. e5 {[%emt 0:00:33]} Bd8 {[%emt 0:01:50]} 25. Rxf7 {[%emt 0:10:25]} Rxf7 {[%emt 0:01:31]} 26. e6 {[%emt 0:01:26]} Re7 {[%emt 0:00:31]} 27. Qg3 {[%emt 0:00:18]} Qc5+ {[%emt 0:00:30]} 28. Kh2 {[%emt 0:00:28]} Qxd5 {[%emt 0:00:23]} 29. f5 {[%emt 0:00:05]} Qe5 {[%emt 0:00:44]} 30. f6 {[%emt 0:00:43]} Qxg3+ {[%emt 0:00:17]} 31. Kxg3 {[%emt 0:00:11]} gxf6 {[%emt 0:00:27]} 32. cxb4 {[%emt 0:00:17]} Rxb4 {[%emt 0:00:26]} 33. Rxf6 {[%emt 0:00:23]} Rg7+ {[%emt 0:00:12]} 34. Rg6 {[%emt 0:00:05]} Rxg6+ {[%emt 0:00:22]} 35. Kh2 {[%emt 0:00:17]} Rxb2 {[%emt 0:00:18]} 36. e7 {[%emt 0:00:49]} Rbxg2+ {[%emt 0:00:10]} 37. Kh1 {[%emt 0:00:12]} Rg1+ {[%emt 0:00:36]} 0-1

[Event "GER-ch Youth-U10 2022"]
[Site "Willingen"]
[Date "2022.06.08"]
[Round "6.11"]
[White "Heitmann, Erik"]
[Black "Junge, Mattheo Gabriel"]
[Result "0-1"]
[ECO "E93"]
[WhiteElo "1287"]
[BlackElo "1132"]
[Annotator "NA RC COMBH"]
[PlyCount "86"]
[EventDate "2022.06.05"]
[EventType "swiss"]
[EventRounds "11"]
[EventCountry "GER"]
[SourceTitle "playchess.com"]
[Source "ChessBase"]
[SourceQuality "1"]
[TimeControl "40/4500+30:900+30"]

1. d4 {[%emt 0:00:02]} Nf6 {[%emt 0:00:09]} 2. c4 {[%emt 0:00:08]} g6 {[%emt 0:00:20]} 3. Nc3 {[%emt 0:00:25]} Bg7 {[%emt 0:00:24]} 4. e4 {[%emt 0:00:05]} d6 {[%emt 0:00:20]} 5. Nf3 {[%emt 0:00:53]} O-O {[%emt 0:01:13]} 6. Be2 {[%emt 0:01:38]} e5 {[%emt 0:00:55]} 7. d5 {[%emt 0:01:53]} Nbd7 {[%emt 0:02:07]} 8. Be3 {[%emt 0:01:50]} Ng4 {[%emt 0:02:38]} 9. Bg5 {[%emt 0:01:46]} f6 {[%emt 0:05:28]} 10. Bd2 {[%emt 0:01:28]} f5 {[%emt 0:05:04]} 11. Ng5 {[%emt 0:08:55]} Qf6 {[%emt 0:15:21]} 12. f3 {[%emt 0:03:15]} f4 {[%emt 0:02:56]} 13. h4 {[%emt 0:02:38]} Ne3 {[%emt 0:02:35]} 14. Bxe3 {[%emt 0:00:16]} fxe3 {[%emt 0:00:31]} 15. Ne6 {[%emt 0:00:13]} Rf7 {[%emt 0:07:08]} 16. Nxc7 {[%emt 0:00:25]} Qf4 {[%emt 0:00:27]} 17. Kf1 {[%emt 0:01:04]} Rb8 {[%emt 0:11:58]} 18. N7b5 {[%emt 0:00:19]} Bf8 {[%emt 0:01:08]} 19. Qe1 {[%emt 0:01:58]} Nf6 {[%emt 0:01:19]} 20. Kg1 {[%emt 0:00:51]} Nh5 {[%emt 0:00:22]} 21. Nxa7 {[%emt 0:04:18]} Bd7 {[%emt 0:01:40]} 22. Nab5 {[%emt 0:01:08]} Ng3 {[%emt 0:00:27]} 23. Rh2 {[%emt 0:00:30]} Be7 {[%emt 0:00:45]} 24. a4 {[%emt 0:05:28]} h6 {[%emt 0:02:21]} 25. a5 {[%emt 0:00:50]} g5 {[%emt 0:01:36]} 26. h5 {[%emt 0:00:30]} g4 {[%emt 0:00:42]} 27. a6 {[%emt 0:02:20]} gxf3 {[%emt 0:01:54]} 28. Bxf3 {[%emt 0:00:43]} bxa6 {[%emt 0:00:45]} 29. Rxa6 {[%emt 0:00:10]} Bxb5 {[%emt 0:06:45]} 30. cxb5 {[%emt 0:01:26]} Rg7 {[%emt 0:01:14]} 31. b6 {[%emt 0:00:35]} Bd8 {[%emt 0:00:50]} 32. Ne2 {[%emt 0:01:00]} Nxe2+ {[%emt 0:00:15]} 33. Qxe2 {[%emt 0:00:10]} Bxb6 {[%emt 0:00:22]} 34. Rh3 {[%emt 0:04:09]} Bd4 {[%emt 0:01:09]} 35. Ra2 {[%emt 0:00:45]} Rc7 {[%emt 0:00:36]} 36. Ra1 {[%emt 0:00:51]} Rxb2 {[%emt 0:00:33]} 37. Ra8+ {[%emt 0:00:25]} Kf7 {[%emt 0:00:26]} 38. Qe1 {[%emt 0:02:02]} e2+ {[%emt 0:00:12]} 39. Kh1 {[%emt 0:00:10]} Rc1 {[%emt 0:00:26]} 40. Qxc1 {[%emt 0:01:05]} Qxc1+ {[%emt 0:00:08]} 41. Kh2 {[%emt 0:15:13]} Qf4+ {[%emt 0:15:14]} 42. g3 {[%emt 0:00:20]} e1=N+ {[%emt 0:00:22]} 43. Kh1 {[%emt 0:00:34]} Qxf3# {[%emt 0:00:55]} 0-1

[Event "GER-ch Youth-U10 2022"]
[Site "Willingen"]
[Date "2022.06.08"]
[Round "6.12"]
[White "Rodriguez Klasen, Ennio"]
[Black "Kutz, Paul Matti"]
[Result "1-0"]
[ECO "D34"]
[WhiteElo "1315"]
[BlackElo "1202"]
[Annotator "NA RC COMBH"]
[PlyCount "103"]
[EventDate "2022.06.05"]
[EventType "swiss"]
[EventRounds "11"]
[EventCountry "GER"]
[SourceTitle "playchess.com"]
[Source "ChessBase"]
[SourceQuality "1"]
[TimeControl "40/4500+30:900+30"]

1. Nf3 {[%emt 0:00:04]} e6 {[%emt 0:00:06]} 2. g3 {[%emt 0:00:09]} d5 {[%emt 0:00:15]} 3. Bg2 {[%emt 0:00:10]} Nf6 {[%emt 0:00:09]} 4. c4 {[%emt 0:00:40]} c5 {[%emt 0:00:09]} 5. cxd5 {[%emt 0:00:07]} exd5 {[%emt 0:00:07]} 6. O-O {[%emt 0:00:09]} Be7 {[%emt 0:00:19]} 7. d4 {[%emt 0:00:55]} O-O {[%emt 0:00:35]} 8. Nc3 {[%emt 0:01:20]} Nc6 {[%emt 0:00:16]} 9. b3 {[%emt 0:01:52]} Ne8 {[%emt 0:03:48]} 10. dxc5 {[%emt 0:03:10]} d4 {[%emt 0:00:42]} 11. Nb5 {[%emt 0:00:54]} Bxc5 {[%emt 0:00:34]} 12. Bb2 {[%emt 0:00:23]} Bg4 {[%emt 0:06:22]} 13. Nbxd4 {[%emt 0:05:23]} Qc7 {[%emt 0:05:40]} 14. Nxc6 {[%emt 0:01:47]} bxc6 {[%emt 0:04:25]} 15. Qc2 {[%emt 0:01:02]} Be7 {[%emt 0:01:17]} 16. Ne5 {[%emt 0:01:06]} f5 {[%emt 0:01:33]} 17. Qxc6 {[%emt 0:06:20]} Qxc6 {[%emt 0:00:43]} 18. Nxc6 {[%emt 0:00:40]} Bc5 {[%emt 0:00:59]} 19. Ne7+ {[%emt 0:01:05]} Bxe7 {[%emt 0:00:09]} 20. Bxa8 {[%emt 0:00:08]} f4 {[%emt 0:02:31]} 21. Bd5+ {[%emt 0:09:23]} Kh8 {[%emt 0:00:11]} 22. Be5 {[%emt 0:04:46]} Bxe2 {[%emt 0:01:58]} 23. Rfe1 {[%emt 0:02:20]} f3 {[%emt 0:00:10]} 24. Bd4 {[%emt 0:01:19]} h5 {[%emt 0:04:25]} 25. Bxf3 {[%emt 0:01:22]} Rxf3 {[%emt 0:02:40]} 26. Rxe2 {[%emt 0:00:23]} Rf7 {[%emt 0:00:09]} 27. Rae1 {[%emt 0:00:11]} Nd6 {[%emt 0:01:09]} 28. Rxe7 {[%emt 0:00:28]} Nf5 {[%emt 0:00:24]} 29. Rxf7 {[%emt 0:00:14]} Nxd4 {[%emt 0:00:04]} 30. Re8+ {[%emt 0:00:25]} Kh7 {[%emt 0:00:07]} 31. Ree7 {[%emt 0:00:08]} Kh6 {[%emt 0:00:10]} 32. Rf4 {[%emt 0:00:41]} Nc2 {[%emt 0:00:40]} 33. Rxa7 {[%emt 0:01:05]} Ne1 {[%emt 0:00:28]} 34. Kf1 {[%emt 0:00:44]} Nd3 {[%emt 0:00:11]} 35. Rd4 {[%emt 0:00:06]} Ne5 {[%emt 0:00:08]} 36. f4 {[%emt 0:00:16]} Nf3 {[%emt 0:00:32]} 37. Rd6+ {[%emt 0:00:18]} Kh7 {[%emt 0:00:11]} 38. a4 {[%emt 0:01:01]} Nxh2+ {[%emt 0:00:15]} 39. Kg2 {[%emt 0:00:16]} Ng4 {[%emt 0:00:55]} 40. a5 {[%emt 0:00:29]} Ne3+ {[%emt 0:00:16]} 41. Kf3 {[%emt 0:15:05]} Nf5 {[%emt 0:15:29]} 42. Rd5 {[%emt 0:00:17]} Nh6 {[%emt 0:00:22]} 43. a6 {[%emt 0:00:15]} Ng8 {[%emt 0:00:10]} 44. Rxg7+ {[%emt 0:00:46]} Kxg7 {[%emt 0:00:18]} 45. a7 {[%emt 0:00:05]} h4 {[%emt 0:00:06]} 46. a8=Q {[%emt 0:00:19]} Nh6 {[%emt 0:00:13]} 47. Qb7+ {[%emt 0:00:16]} Kg6 {[%emt 0:00:32]} 48. Qc6+ {[%emt 0:00:10]} Kg7 {[%emt 0:00:10]} 49. Rd7+ {[%emt 0:00:05]} Nf7 {[%emt 0:00:19]} 50. Qe6 {[%emt 0:00:12]} hxg3 {[%emt 0:00:18]} 51. Qxf7+ {[%emt 0:00:18]} Kh6 {[%emt 0:00:06]} 52. Qh7# {[%emt 0:00:06]} 1-0

[Event "GER-ch Youth-U10 2022"]
[Site "Willingen"]
[Date "2022.06.08"]
[Round "6.13"]
[White "Fadeev, Justin Michael"]
[Black "Sheng, Ming"]
[Result "0-1"]
[ECO "B78"]
[WhiteElo "1320"]
[BlackElo "1258"]
[Annotator "NA RC COMBH"]
[PlyCount "82"]
[EventDate "2022.06.05"]
[EventType "swiss"]
[EventRounds "11"]
[EventCountry "GER"]
[SourceTitle "playchess.com"]
[Source "ChessBase"]
[SourceQuality "1"]
[TimeControl "40/4500+30:900+30"]

1. e4 {[%emt 0:00:02]} c5 {[%emt 0:00:09]} 2. Nf3 {[%emt 0:00:37]} Nc6 {[%emt 0:00:14]} 3. d4 {[%emt 0:00:29]} cxd4 {[%emt 0:00:11]} 4. Nxd4 {[%emt 0:00:08]} g6 {[%emt 0:00:23]} 5. Nc3 {[%emt 0:00:43]} Bg7 {[%emt 0:00:27]} 6. Be3 {[%emt 0:00:10]} Nf6 {[%emt 0:00:09]} 7. Bc4 {[%emt 0:00:31]} O-O {[%emt 0:00:52]} 8. Bb3 {[%emt 0:00:16]} d6 {[%emt 0:00:27]} 9. f3 {[%emt 0:00:12]} Bd7 {[%emt 0:01:12]} 10. Qd2 {[%emt 0:00:14]} Nxd4 {[%emt 0:01:11]} 11. Bxd4 {[%emt 0:00:27]} b5 {[%emt 0:00:22]} 12. O-O-O {[%emt 0:01:05]} a5 {[%emt 0:01:28]} 13. Nd5 {[%emt 0:07:40]} Nxd5 {[%emt 0:00:34]} 14. Bxg7 {[%emt 0:01:19]} Kxg7 {[%emt 0:00:14]} 15. Bxd5 {[%emt 0:00:51]} Rc8 {[%emt 0:00:20]} 16. e5 {[%emt 0:05:53]} Bf5 {[%emt 0:01:09]} 17. Be4 {[%emt 0:04:06]} Bxe4 {[%emt 0:00:34]} 18. fxe4 {[%emt 0:00:08]} dxe5 {[%emt 0:00:28]} 19. Qe2 {[%emt 0:04:08]} Qb6 {[%emt 0:02:01]} 20. g4 {[%emt 0:01:47]} Rc4 {[%emt 0:02:06]} 21. h4 {[%emt 0:01:26]} Rfc8 {[%emt 0:00:16]} 22. Rd2 {[%emt 0:00:49]} Qb7 {[%emt 0:01:54]} 23. Re1 {[%emt 0:00:31]} h6 {[%emt 0:01:51]} 24. Qf3 {[%emt 0:02:04]} R8c6 {[%emt 0:04:51]} 25. g5 {[%emt 0:00:43]} h5 {[%emt 0:01:10]} 26. Rf1 {[%emt 0:01:39]} f6 {[%emt 0:00:49]} 27. Rfd1 {[%emt 0:04:31]} Qc8 {[%emt 0:02:41]} 28. Qb3 {[%emt 0:15:09]} a4 {[%emt 0:01:54]} 29. gxf6+ {[%emt 0:02:47]} Kxf6 {[%emt 0:03:25]} 30. Qd3 {[%emt 0:06:11]} Kg7 {[%emt 0:01:47]} 31. Rg1 {[%emt 0:02:21]} b4 {[%emt 0:02:44]} 32. Kb1 {[%emt 0:02:15]} b3 {[%emt 0:03:06]} 33. axb3 {[%emt 0:00:13]} axb3 {[%emt 0:01:12]} 34. Qxb3 {[%emt 0:00:13]} Rxe4 {[%emt 0:01:10]} 35. Qd5 {[%emt 0:03:09]} Re3 {[%emt 0:03:27]} 36. Rg5 {[%emt 0:06:27]} Rxc2 {[%emt 0:03:43]} 37. Rxc2 {[%emt 0:01:35]} Re1+ {[%emt 0:00:32]} 38. Ka2 {[%emt 0:00:07]} Qxc2 {[%emt 0:00:25]} 39. Ka3 {[%emt 0:01:43]} Ra1+ {[%emt 0:01:05]} 40. Kb4 {[%emt 0:00:10]} Qxb2+ {[%emt 0:00:09]} 41. Kc4 {[%emt 0:15:23]} Rc1+ {[%emt 0:15:28]} 0-1